fUSD/lending_fUSD_20260203
["ID","MTS","AMOUNT","RATE_DAILY","PERIOD"]
[404455752,1770151835149,-248.45,0.00013698,2]
[404455753,1770151835158,-500.0,0.00013698,2]
[404455754,1770151835167,-500.0,0.00013698,2]
[404455755,1770151835176,-500.0,0.00013698,2]
[404455756,1770151835186,-500.0,0.00013698,2]
[404455757,1770151835195,-500.0,0.00013698,2]
[404455758,1770151835204,-500.0,0.00013698,2]
[404455759,1770151835213,-500.0,0.00013698,2]
[404455760,1770151835222,-500.0,0.00013698,2]
[404455761,1770151835232,-500.0,0.00013698,2]
[404455762,1770151835241,-500.0,0.00013698,2]
[404455763,1770151835250,-500.0,0.00013698,2]
[404455764,1770151835259,-500.0,0.00013698,2]
[404455765,1770151835268,-340.45778603,0.00013698,2]
[404455766,1770151835278,-500.0,0.00013698,2]
[404455767,1770151835287,-500.0,0.00013698,2]
[404455768,1770151835296,-500.0,0.00013698,2]
[404455769,1770151835305,-500.0,0.00013698,2]
[404455770,1770151835314,-500.0,0.00013698,2]
[404455771,1770151835323,-500.0,0.00013698,2]
[404455772,1770151835331,-500.0,0.00013698,2]
[404455773,1770151835340,-500.0,0.00013698,2]
[404455774,1770151835349,-500.0,0.00013698,2]
[404455775,1770151835359,-620.13152007,0.00013698,2]
[404455776,1770151835367,-599.11588893,0.00013698,2]
[404455777,1770151835376,-500.0,0.00013698,2]
[404455778,1770151835385,-500.0,0.00013698,2]
[404455779,1770151835395,-500.0,0.00013698,2]
[404455780,1770151835404,-500.0,0.00013698,2]
[404455781,1770151835412,-500.0,0.00013698,2]
[404455782,1770151835422,-500.0,0.00013698,2]
[404455783,1770151835431,-500.0,0.00013698,2]
[404455784,1770151835440,-500.0,0.00013698,2]
[404455785,1770151835449,-500.0,0.00013698,2]
[404455786,1770151835458,-500.0,0.00013698,2]
[404455787,1770151835476,-500.0,0.00013698,2]
[404455788,1770151835487,-500.0,0.00013698,2]
[404455789,1770151835496,-500.0,0.00013698,2]
[404455790,1770151835505,-278.49714718,0.00013698,2]
[404455791,1770151835514,-500.0,0.00013698,2]
[404455792,1770151835524,-500.0,0.00013698,2]
[404455793,1770151835533,-500.0,0.00013698,2]
[404455794,1770151835542,-500.0,0.00013698,2]
[404455795,1770151835552,-500.0,0.00013698,2]
[404455796,1770151835561,-500.0,0.00013698,2]
[404455797,1770151835570,-500.0,0.00013698,2]
[404455798,1770151835580,-500.0,0.00013698,2]
[404455799,1770151835590,-500.0,0.00013698,2]
[404455800,1770151835599,-500.0,0.00013698,2]
[404455801,1770151835608,-500.0,0.00013698,2]
[404455802,1770151835618,-500.0,0.00013698,2]
[404455803,1770151835628,-500.0,0.00013698,2]
[404455804,1770151835637,-500.0,0.00013698,2]
[404455805,1770151835648,-500.0,0.00013698,2]
[404455806,1770151835658,-500.0,0.00013698,2]
[404455807,1770151835668,-500.0,0.00013698,2]
[404455808,1770151835677,-500.0,0.00013698,2]
[404455809,1770151835688,-275.72651832,0.00013698,2]
[404455810,1770151835698,-500.0,0.00013698,2]
[404455811,1770151835707,-500.0,0.00013698,2]
[404455812,1770151835716,-500.0,0.00013698,2]
[404455813,1770151835726,-545.50641599,0.00013698,2]
[404455814,1770151835735,-500.0,0.00013698,2]
[404455815,1770151835744,-500.0,0.00013698,2]
[404455816,1770151835754,-500.0,0.00013698,2]
[404455817,1770151835764,-500.0,0.00013698,2]
[404455818,1770151835778,-548.33821979,0.00013698,2]
[404455819,1770151835788,-500.0,0.00013698,2]
[404455820,1770151835799,-500.0,0.00013698,2]
[404455821,1770151835810,-500.0,0.00013698,2]
[404455822,1770151835820,-500.0,0.00013698,2]
[404455823,1770151835833,-500.0,0.00013698,2]
[404455824,1770151835845,-500.0,0.00013698,2]
[404455825,1770151835855,-500.0,0.00013698,2]
[404455826,1770151835864,-500.0,0.00013698,2]
[404455827,1770151835874,-500.0,0.00013698,2]
[404455828,1770151835883,-500.0,0.00013698,2]
[404455829,1770151835893,-500.0,0.00013698,2]
[404455830,1770151835903,-500.0,0.00013698,2]
[404455831,1770151835913,-500.0,0.00013698,2]
[404455832,1770151835923,-500.0,0.00013698,2]
[404455833,1770151835933,-500.0,0.00013698,2]
[404455834,1770151835942,-500.0,0.00013698,2]
[404455835,1770151835953,-500.0,0.00013698,2]
[404455836,1770151835963,-500.0,0.00013698,2]
[404455837,1770151835972,-500.0,0.00013698,2]
[404455838,1770151835983,-500.0,0.00013698,2]
[404455839,1770151835994,-500.0,0.00013698,2]
[404455840,1770151836003,-500.0,0.00013698,2]
[404455841,1770151836013,-500.0,0.00013698,2]
[404455842,1770151836023,-500.0,0.00013698,2]
[404455843,1770151836033,-500.0,0.00013698,2]
[404455844,1770151836042,-500.0,0.00013698,2]
[404455845,1770151836052,-500.0,0.00013698,2]
[404455846,1770151836061,-500.0,0.00013698,2]
[404455847,1770151836070,-500.0,0.00013698,2]
[404455848,1770151836080,-500.0,0.00013698,2]
[404455849,1770151836089,-500.0,0.00013698,2]
[404455850,1770151836099,-500.0,0.00013698,2]
[404455851,1770151836109,-500.0,0.00013698,2]
[404455852,1770151836118,-500.0,0.00013698,2]
[404455853,1770151836128,-500.0,0.00013698,2]
[404455854,1770151836138,-293.83360739,0.00013698,2]
[404455855,1770151836147,-500.0,0.00013698,2]
[404455856,1770151836157,-500.0,0.00013698,2]
[404455857,1770151836175,-500.0,0.00013698,2]
[404455858,1770151836191,-500.0,0.00013698,2]
[404455859,1770151836204,-500.0,0.00013698,2]
[404455860,1770151836214,-500.0,0.00013698,2]
[404455861,1770151836223,-500.0,0.00013698,2]
[404455862,1770151836233,-500.0,0.00013698,2]
[404455863,1770151836243,-500.0,0.00013698,2]
[404455864,1770151836252,-500.0,0.00013698,2]
[404455865,1770151836264,-500.0,0.00013698,2]
[404455866,1770151836274,-500.0,0.00013698,2]
[404455867,1770151836285,-500.0,0.00013698,2]
[404455868,1770151836295,-500.0,0.00013698,2]
[404455869,1770151836306,-500.0,0.00013698,2]
[404455870,1770151836316,-930.2,0.00013698,2]
[404455871,1770151836327,-930.2,0.00013698,2]
[404455872,1770151836338,-930.2,0.00013698,2]
[404455873,1770151836348,-930.2,0.00013698,2]
[404455874,1770151836357,-930.2,0.00013698,2]
[404455875,1770151836370,-930.2,0.00013698,2]
[404455876,1770151836383,-930.2,0.00013698,2]
[404455877,1770151836392,-930.2,0.00013698,2]
[404455878,1770151836402,-930.2,0.00013698,2]
[404455879,1770151836419,-930.2,0.00013698,2]
[404455880,1770151836431,-930.2,0.00013698,2]
[404455881,1770151836442,-930.2,0.00013698,2]
[404455882,1770151836453,-930.2,0.00013698,2]
[404455883,1770151836466,-930.2,0.00013698,2]
[404455884,1770151836475,-500.0,0.00013698,2]
[404455885,1770151836485,-930.2,0.00013698,2]
[404455886,1770151836497,-500.0,0.00013698,2]
[404455887,1770151836506,-500.0,0.00013698,2]
[404455888,1770151836520,-500.0,0.00013698,2]
[404455889,1770151836531,-500.0,0.00013698,2]
[404455890,1770151836540,-500.0,0.00013698,2]
[404455891,1770151836550,-500.0,0.00013698,2]
[404455892,1770151836560,-500.0,0.00013698,2]
[404455893,1770151836569,-500.0,0.00013698,2]
[404455894,1770151836582,-500.0,0.00013698,2]
[404455895,1770151836600,-500.0,0.00013698,2]
[404455896,1770151836610,-500.0,0.00013698,2]
[404455897,1770151836621,-500.0,0.00013698,2]
[404455898,1770151836639,-500.0,0.00013698,2]
[404455899,1770151836649,-500.0,0.00013698,2]
[404455900,1770151836659,-500.0,0.00013698,2]
[404455901,1770151836675,-500.0,0.00013698,2]
[404455902,1770151836685,-500.0,0.00013698,2]
[404455903,1770151836695,-500.0,0.00013698,2]
[404455904,1770151836704,-500.0,0.00013698,2]
[404455905,1770151836714,-500.0,0.00013698,2]
[404455906,1770151836723,-500.0,0.00013698,2]
[404455907,1770151836732,-500.0,0.00013698,2]
[404455908,1770151836742,-829.56,0.00013698,2]
[404455909,1770151836751,-829.56,0.00013698,2]
[404455910,1770151836762,-500.0,0.00013698,2]
[404455911,1770151836773,-500.0,0.00013698,2]
[404455912,1770151836783,-829.56,0.00013698,2]
[404455913,1770151836792,-829.56,0.00013698,2]
[404455914,1770151836802,-500.0,0.00013698,2]
[404455915,1770151836814,-333.05293699,0.00013698,2]
[404455916,1770151836824,-829.56,0.00013698,2]
[404455917,1770151836833,-829.56,0.00013698,2]
[404455918,1770151836847,-829.56,0.00013698,2]
[404455919,1770151836856,-829.56,0.00013698,2]
[404455920,1770151836866,-829.56,0.00013698,2]
[404455921,1770151836876,-829.56,0.00013698,2]
[404455922,1770151836885,-829.56,0.00013698,2]
[404455923,1770151836895,-829.56,0.00013698,2]
[404455924,1770151836906,-829.56,0.00013698,2]
[404455925,1770151836917,-829.56,0.00013698,2]
[404455926,1770151836927,-829.56,0.00013698,2]
[404455927,1770151836937,-827.56,0.00013698,2]
[404455928,1770151836946,-827.56,0.00013698,2]
[404455929,1770151836955,-827.56,0.00013698,2]
[404455930,1770151836964,-827.56,0.00013698,2]
[404455931,1770151836974,-827.56,0.00013698,2]
[404455932,1770151836983,-827.56,0.00013698,2]
[404455933,1770151836993,-827.56,0.00013698,2]
[404455934,1770151837002,-827.56,0.00013698,2]
[404455935,1770151837012,-827.56,0.00013698,2]
[404455936,1770151837022,-827.56,0.00013698,2]
[404455937,1770151837032,-827.56,0.00013698,2]
[404455938,1770151837043,-827.56,0.00013698,2]
[404455939,1770151837055,-827.56,0.00013698,2]
[404455940,1770151837065,-827.56,0.00013698,2]
[404455941,1770151837074,-827.56,0.00013698,2]
[404455942,1770151837084,-827.56,0.00013698,2]
[404455943,1770151837094,-827.56,0.00013698,2]
[404455944,1770151837105,-827.56,0.00013698,2]
[404455945,1770151837115,-827.56,0.00013698,2]
[404455946,1770151837125,-827.56,0.00013698,2]
[404455947,1770151837134,-827.56,0.00013698,2]
[404455948,1770151837144,-827.56,0.00013698,2]
[404455949,1770151837154,-827.56,0.00013698,2]
[404455950,1770151837163,-827.76148,0.00013698,2]
[404455951,1770151837172,-585.98,0.00013698,2]
[404455952,1770151837182,-585.98,0.00013698,2]
[404455953,1770151837191,-585.98,0.00013698,2]
[404455954,1770151837201,-585.98,0.00013698,2]
[404455955,1770151837210,-585.98,0.00013698,2]
[404455956,1770151837220,-585.98,0.00013698,2]
[404455957,1770151837230,-585.98,0.00013698,2]
[404455958,1770151837239,-585.98,0.00013698,2]
[404455959,1770151837249,-585.98,0.00013698,2]
[404455960,1770151837259,-585.98,0.00013698,2]
[404455961,1770151837268,-585.98,0.00013698,2]
[404455962,1770151837278,-585.98,0.00013698,2]
[404455963,1770151837288,-585.98,0.00013698,2]
[404455964,1770151837297,-585.98,0.00013698,2]
[404455965,1770151837307,-585.98,0.00013698,2]
[404455966,1770151837316,-585.98,0.00013698,2]
[404455967,1770151837326,-585.98,0.00013698,2]
[404455968,1770151837338,-585.98,0.00013698,2]
[404455969,1770151837355,-585.98,0.00013698,2]
[404455970,1770151837365,-585.98,0.00013698,2]
[404455971,1770151837374,-585.98,0.00013698,2]
[404455973,1770151837384,-585.98,0.00013698,2]
[404455974,1770151837393,-585.98,0.00013698,2]
[404455975,1770151837403,-586.06652437,0.00013698,2]
[404455976,1770151837412,-500.0,0.00013698,2]
[404455977,1770151837421,-500.0,0.00013698,2]
[404455978,1770151837430,-500.0,0.00013698,2]
[404455979,1770151837449,-500.0,0.00013698,2]
[404455980,1770151837458,-500.0,0.00013698,2]
[404455983,1770151837468,-500.0,0.00013698,2]
[404455984,1770151837729,-500.0,0.00013698,2]
[404455985,1770151837739,-500.0,0.00013698,2]
[404455986,1770151837748,-500.0,0.00013698,2]
[404455987,1770151837756,-500.0,0.00013698,2]
[404455988,1770151837769,-500.0,0.00013698,2]
[404455989,1770151837778,-500.0,0.00013698,2]
[404455990,1770151837787,-500.0,0.00013698,2]
[404455991,1770151837797,-500.0,0.00013698,2]
[404455992,1770151837807,-500.0,0.00013698,2]
[404455993,1770151837815,-500.0,0.00013698,2]
[404455994,1770151837824,-500.0,0.00013698,2]
[404455995,1770151837834,-500.0,0.00013698,2]
[404455996,1770151837846,-500.0,0.00013698,2]
[404455997,1770151837855,-327.37462682,0.00013698,2]
[404455998,1770151837867,-983.98,0.00013698,2]
[404455999,1770151837876,-983.98,0.00013698,2]
[404456001,1770151837885,-983.98,0.00013698,2]
[404456003,1770151837894,-983.98,0.00013698,2]
[404456005,1770151837903,-983.98,0.00013698,2]
[404456007,1770151837912,-983.98,0.00013698,2]
[404456008,1770151837921,-983.98,0.00013698,2]
[404456010,1770151837930,-983.98,0.00013698,2]
[404456012,1770151837939,-983.98,0.00013698,2]
[404456014,1770151837948,-983.98,0.00013698,2]
[404456016,1770151837958,-983.98,0.00013698,2]
[404456018,1770151837967,-983.98,0.00013698,2]
[404456020,1770151837976,-983.98,0.00013698,2]
[404456022,1770151837985,-983.98,0.00013698,2]
[404456024,1770151837995,-983.98,0.00013698,2]
[404456026,1770151838004,-983.98,0.00013698,2]
[404456028,1770151838013,-983.98,0.00013698,2]
[404456030,1770151838022,-983.98,0.00013698,2]
[404456032,1770151838031,-168.05,0.00013699,2]
[404456034,1770151838040,-200.0,0.00013699,2]
[404456036,1770151838049,-356.86,0.00013699,2]
[404456038,1770151838059,-297.38,0.00013699,2]
[404456040,1770151838068,-247.82,0.00013699,2]
[404456042,1770151838078,-206.51,0.00013699,2]
[404456044,1770151838087,-172.1,0.00013699,2]
[404456046,1770151838096,-860.5,0.00013699,2]
[404456048,1770151838106,-242.10038489,0.00013756,2]
[404456050,1770151838117,-557.69661282,0.00013756,2]
[404456052,1770151838126,-3000.0,0.00013756,2]
[404456054,1770151838135,-3000.0,0.00013756,2]
[404456056,1770151838144,-3000.0,0.00013756,2]
[404456058,1770151838154,-500.0,0.00013792,2]
[404456060,1770151838163,-930.2,0.00013792,2]
[404456062,1770151838172,-829.56,0.00013792,2]
[404456064,1770151838181,-5533.5258,0.00013793,2]
[404456066,1770151838191,-5071.21639742,0.00013807,2]
[404456067,1770151838200,-500.0,0.00013836,2]
[404456068,1770151838210,-200.0,0.00013836,2]
[404456069,1770151838223,-1600.0,0.00013904,2]
[404456070,1770151838233,-248.45,0.00013972,2]
[404456071,1770151838243,-166.66,0.00013999,2]
[404456072,1770151838253,-200.0,0.00014,2]
[404456073,1770151838263,-7214.99664017,0.00014076,2]
[404456074,1770151838272,-248.45,0.00014245,2]
[404456075,1770151838282,-500.0,0.00014247,2]
[404456076,1770151838292,-8409.74790901,0.00014284,2]
[404456077,1770151838301,-4609.0,0.00014293,2]
[404456078,1770151838311,-3500.0,0.00014304,2]
[404456079,1770151838320,-617.46581372,0.00014304,2]
[404456080,1770151838329,-1827.70695956,0.00014304,2]
[404456081,1770151838339,-500.0,0.00014384,2]
[404456083,1770151838348,-200.0,0.00014384,2]
[404456085,1770151838358,-1252.0,0.00014438,2]
[404456086,1770151838368,-1294.06,0.00014504,2]
[404456087,1770151838378,-248.45,0.00014519,2]
[404456088,1770151838389,-7214.99664017,0.00014554,2]
[404456089,1770151838398,-151.0,0.00014634,2]
[404456090,1770151838408,-151.0,0.00014634,2]
[404456091,1770151838418,-248.45,0.00014793,2]
[404456092,1770151838428,-4000.0,0.00014852,2]
[404456093,1770151838437,-500.0,0.00014932,2]
[404456094,1770151838446,-200.0,0.00014932,2]
[404456095,1770151838456,-250.0,0.00015,2]
[404456096,1770151838466,-7214.99664017,0.00015032,2]
[404456097,1770151838476,-2078.27978345,0.00015062,2]
[404456098,1770151838486,-155.0,0.00015067,2]
[404456099,1770151838495,-248.54,0.00015067,2]
[404456100,1770151838505,-869.05,0.00015068,2]
[404456101,1770151838514,-464177.6176997,0.00015072,2]
[404456102,1770151838524,-8409.74790901,0.00015188,2]
[404456103,1770151838533,-622.85,0.00015342,2]
[404456104,1770151838542,-1046.8548043,0.000154,2]
[404456105,1770151838552,-5709.02,0.00015461,2]
[404456106,1770151838561,-500.0,0.0001548,2]
[404456107,1770151838571,-200.0,0.0001548,2]
[404456108,1770151838581,-7214.99664017,0.0001551,2]
[404456109,1770151838591,-500.0,0.00015631,2]
[404456110,1770151838600,-930.2,0.00015631,2]
[404456111,1770151838610,-829.56,0.00015631,2]
[404456112,1770151838622,-11503.5850753,0.00015632,2]
[404456113,1770151838632,-3834.5283585,0.00015632,2]
[404456114,1770151838641,-31113.6892668,0.00015632,2]
[404456115,1770151838651,-500.0,0.00015644,2]
[404456116,1770151838660,-6453.0,0.00015722,2]
[404456117,1770151838669,-2129.0,0.00015888,2]
[404456118,1770151838679,-1100.0,0.000159,5]
[404456119,1770151838689,-666.51605495,0.00015956,2]
[404456120,1770151838699,-177.77659683,0.00015956,2]
[404456121,1770151838708,-179.31080676,0.00015956,2]
[404456122,1770151838718,-174.3048569,0.00015956,2]
[404456123,1770151838727,-7214.99664017,0.00015988,2]
[404456124,1770151838737,-500.0,0.00015999,2]
[404456125,1770151838747,-930.2,0.00015999,2]
[404456126,1770151838756,-829.56,0.00015999,2]
[404456127,1770151838766,-252964.916388,0.00016,4]
[404456128,1770151838780,-200.0,0.00016,2]
[404456129,1770151838789,-200.0,0.00016,2]
[404456130,1770151838798,-200.0,0.00016,2]
[404456131,1770151838808,-200.0,0.00016,2]
[404456132,1770151838819,-2000.0,0.00016,2]
[404456133,1770151838828,-205.81687173,0.00016,2]
[404456134,1770151838837,-500.0,0.00016028,2]
[404456135,1770151838848,-202.52521576,0.00016028,2]
[404456136,1770151838858,-8409.74790901,0.00016092,2]
[404456137,1770151838869,-2000.0,0.000161,2]
[404456138,1770151838879,-205.81687173,0.000161,2]
[404456139,1770151838888,-200.0,0.0001616,2]
[404456140,1770151838898,-200.0,0.0001616,2]
[404456141,1770151838907,-200.0,0.0001616,2]
[404456142,1770151838918,-5000.00384544,0.000162,5]
[404456143,1770151838928,-205.81687173,0.000162,2]
[404456144,1770151838937,-200.0,0.0001622,2]
[404456145,1770151838947,-5709.02,0.00016234,2]
[404456146,1770151838957,-178.43,0.00016237,2]
[404456147,1770151838966,-200.0,0.00016322,2]
[404456148,1770151838977,-200.0,0.00016322,2]
[404456149,1770151838986,-200.0,0.00016322,2]
[404456150,1770151838996,-163.0,0.000164,2]
[404456151,1770151839005,-2000.0,0.000164,2]
[404456152,1770151839015,-155.0,0.00016436,2]
[404456153,1770151839025,-521.5526136,0.00016437,2]
[404456154,1770151839034,-200.0,0.00016438,2]
[404456155,1770151839044,-200.0,0.00016438,3]
[404456156,1770151839053,-200.0,0.00016438,4]
[404456157,1770151839062,-200.0,0.00016438,5]
[404456158,1770151839072,-200.0,0.00016438,6]
[404456159,1770151839082,-200.0,0.00016438,7]
[404456160,1770151839091,-200.0,0.00016438,8]
[404456161,1770151839100,-200.0,0.00016438,9]
[404456162,1770151839110,-200.0,0.00016438,10]
[404456163,1770151839122,-200.0,0.00016438,11]
[404456164,1770151839132,-200.0,0.00016438,12]
[404456165,1770151839141,-200.0,0.00016438,13]
[404456166,1770151839151,-200.0,0.00016438,14]
[404456167,1770151839160,-347.38207191,0.00016438,15]
[404456168,1770151839170,-500.0,0.00016438,2]
[404456169,1770151839179,-500.0,0.00016438,2]
[404456170,1770151839189,-264.60146408,0.00016438,2]
[404456171,1770151839199,-500.0,0.00016438,2]
[404456172,1770151839210,-800.0,0.00016438,2]
[404456173,1770151839219,-7214.99664017,0.00016466,2]
[404456174,1770151839229,-200.0,0.00016485,2]
[404456175,1770151839239,-200.0,0.00016485,2]
[404456176,1770151839249,-200.0,0.00016485,2]
[404456177,1770151839258,-322.6107,0.00016544,2]
[404456178,1770151839268,-174.61919141,0.00016544,2]
[404456179,1770151839278,-209.40437684,0.00016544,2]
[404456180,1770151839287,-209.40437684,0.00016544,2]
[404456181,1770151839297,-277.35679052,0.00016544,2]
[404456182,1770151839307,-868.92858835,0.00016544,2]
[404456183,1770151839317,-200.0,0.00016544,2]
[404456184,1770151839326,-721.12765535,0.00016544,2]
[404456185,1770151839336,-209.40437684,0.00016544,2]
[404456186,1770151839347,-578.20924308,0.00016544,2]
[404456187,1770151839357,-160.0,0.00016544,2]
[404456188,1770151839368,-500.0,0.00016544,2]
[404456189,1770151839378,-500.0,0.00016544,2]
[404456190,1770151839387,-500.0,0.00016544,2]
[404456191,1770151839396,-500.0,0.00016544,2]
[404456192,1770151839405,-248.97678456,0.00016544,2]
[404456193,1770151839414,-1428.38747117,0.00016544,2]
[404456194,1770151839423,-500.0,0.00016544,2]
[404456195,1770151839432,-500.0,0.00016544,2]
[404456196,1770151839441,-500.0,0.00016544,2]
[404456197,1770151839450,-500.0,0.00016544,2]
[404456198,1770151839459,-500.0,0.00016544,2]
[404456199,1770151839468,-500.0,0.00016544,2]
[404456200,1770151839477,-500.0,0.00016544,2]
[404456201,1770151839487,-500.0,0.00016544,2]
[404456202,1770151839496,-500.0,0.00016544,2]
[404456203,1770151839506,-500.0,0.00016544,2]
[404456204,1770151839515,-500.0,0.00016544,2]
[404456205,1770151839524,-500.0,0.00016576,2]
[404456206,1770151839533,-217.15233878,0.00016599,2]
[404456207,1770151839542,-200.0,0.0001665,2]
[404456208,1770151839551,-200.0,0.0001665,2]
[404456209,1770151839560,-200.0,0.0001665,2]
[404456210,1770151839569,-225.18697532,0.00016654,2]
[404456211,1770151839579,-233.51889341,0.00016709,2]
[404456212,1770151839588,-1000.0,0.00016712,2]
[404456213,1770151839596,-163.0,0.0001672,2]
[404456214,1770151839605,-500.0,0.0001673,2]
[404456215,1770151839615,-260.20893212,0.0001673,2]
[404456216,1770151839624,-349.39414213,0.0001673,2]
[404456217,1770151839634,-500.0,0.0001673,2]
[404456218,1770151839643,-500.0,0.0001673,2]
[404456219,1770151839652,-500.0,0.0001673,2]
[404456220,1770151839661,-500.0,0.0001673,2]
[404456221,1770151839670,-500.23723554,0.0001673,2]
[404456222,1770151839679,-500.0,0.0001673,2]
[404456223,1770151839689,-500.35331747,0.0001673,2]
[404456224,1770151839698,-500.0,0.0001673,2]
[404456225,1770151839708,-160.66040125,0.0001673,2]
[404456226,1770151839717,-460.43591281,0.0001673,2]
[404456227,1770151839726,-500.0,0.0001673,2]
[404456228,1770151839736,-163.51025142,0.0001673,2]
[404456229,1770151839744,-161.50529387,0.0001673,2]
[404456230,1770151839754,-559.8488152,0.0001673,2]
[404456231,1770151839764,-500.0,0.0001673,2]
[404456232,1770151839778,-500.5919293,0.0001673,2]
[404456233,1770151839787,-340.20370382,0.0001673,2]
[404456234,1770151839795,-500.0,0.0001673,2]
[404456235,1770151839804,-500.0,0.0001673,2]
[404456236,1770151839814,-500.0,0.0001673,2]
[404456237,1770151839829,-500.0,0.0001673,2]
[404456238,1770151839839,-486.39586711,0.0001673,2]
[404456239,1770151839850,-500.0,0.0001673,2]
[404456240,1770151839860,-500.0,0.0001673,2]
[404456241,1770151839871,-500.0,0.0001673,2]
[404456242,1770151839880,-500.0,0.0001673,2]
[404456243,1770151839890,-500.0,0.0001673,2]
[404456244,1770151839899,-500.0,0.0001673,2]
[404456245,1770151839907,-550.30933962,0.0001673,2]
[404456246,1770151839916,-500.0,0.0001673,2]
[404456247,1770151839925,-593.67705191,0.0001673,2]
[404456248,1770151839935,-185.58842185,0.0001673,2]
[404456249,1770151839944,-558.68376736,0.0001673,2]
[404456250,1770151839952,-500.32227363,0.0001673,2]
[404456251,1770151839962,-500.0,0.0001673,2]
[404456252,1770151839971,-500.0,0.0001673,2]
[404456253,1770151839980,-500.0,0.0001673,2]
[404456254,1770151839989,-500.0,0.0001673,2]
[404456255,1770151839999,-150.38423359,0.0001673,2]
[404456256,1770151840008,-500.0,0.0001673,2]
[404456257,1770151840018,-522.46720668,0.0001673,2]
[404456258,1770151840027,-500.0,0.0001673,2]
[404456259,1770151840036,-513.10579146,0.0001673,2]
[404456260,1770151840045,-500.0,0.0001673,2]
[404456261,1770151840057,-500.0,0.0001673,2]
[404456262,1770151840066,-168.06766259,0.0001673,2]
[404456263,1770151840076,-565.28889889,0.0001673,2]
[404456264,1770151840085,-500.0,0.0001673,2]
[404456265,1770151840094,-242.15909246,0.00016764,2]
[404456266,1770151840104,-251.11897888,0.00016819,2]
[404456267,1770151840113,-16788.91059816,0.00016826,2]
[404456268,1770151840122,-2084.71628135,0.00016826,2]
[404456269,1770151840132,-123021.4432068,0.0001683,2]
[404456270,1770151840142,-267.67,0.00016851,2]
[404456271,1770151840151,-260.4103811,0.00016874,2]
[404456272,1770151840160,-2300.0,0.000169,6]
[404456273,1770151840170,-11999.24305607,0.000169,5]
[404456274,1770151840180,-270.0455652,0.00016929,2]
[404456275,1770151840189,-7214.99664017,0.00016944,2]
[404456277,1770151840198,-280.03725112,0.00016984,2]
[404456279,1770151840208,-1000.0,0.00016986,2]
[404456281,1770151840217,-8409.74790901,0.00016996,2]
[404456283,1770151840226,-33740.41699124,0.00017,2]
[404456285,1770151840235,-300.0,0.00017,2]
[404456287,1770151840244,-200.0,0.00017,2]
[404456289,1770151840253,-159.59248424,0.00017,2]
[404456291,1770151840262,-5709.02,0.00017007,2]
[404456293,1770151840271,-290.39862941,0.00017039,2]
[404456296,1770151840280,-163.0,0.0001704,2]
[404456299,1770151840289,-839.0,0.0001704,2]
[404456301,1770151840298,-181.08010149,0.00017092,2]
[404456303,1770151840307,-217.15233878,0.00017092,2]
[404456305,1770151840316,-319.59046933,0.00017092,2]